bitfinex/quotes_ETHUSD_20220115
["timestamp","ask_amount","ask_price","bid_price","bid_amount"]
[1642256323690,0.00170527,3297.1,3297.0,8.15347892]
[1642256323892,3.00170527,3297.1,3297.0,4.83637892]
[1642256324692,3.00170527,3297.1,3297.0,7.14711173]
[1642256325091,3.00170527,3297.1,3297.0,9.87942055]
[1642256325291,1.12397519,3297.1,3297.0,9.87942055]
[1642256325491,1.12397519,3297.1,3297.0,7.14711173]
[1642256325692,1.12397519,3297.1,3297.0,15.2854649]
[1642256326096,0.7582865,3298.3,3297.1,5.65]
[1642256326292,0.75828,3298.1,3297.1,8.30541022]
[1642256326495,0.75828,3298.1,3297.1,5.65]
[1642256326730,0.70828,3298.1,3297.1,8.29279837]
[1642256327131,0.00625266,3298.2,3297.8,1.13614374]
[1642256327529,0.00568423,3298.1,3297.8,1.13614374]
[1642256327729,0.00568423,3298.1,3297.9,1.02790278]
[1642256327929,0.00511581,3298.0,3297.9,1.02790278]
[1642256329532,0.00511581,3298.0,3297.9,8.77790278]
[1642256329731,0.00511581,3298.0,3297.9,15.35855978]
[1642256330131,0.00511581,3298.0,3297.9,16.84449023]
[1642256331386,1.94178681,3299.1,3298.1,0.02060558]
[1642256331580,1.178571,3299.1,3298.1,2.74434812]
[1642256331779,0.00454739,3298.8,3298.1,2.72374254]
[1642256331982,0.00454739,3298.8,3298.0,6.89680689]
[1642256332181,0.801736,3299.2,3298.0,6.89680689]
[1642256332182,0.00397896,3298.7,3298.0,6.89680689]
[1642256332480,0.00341054,3298.6,3298.0,4.3]
[1642256332880,0.00284212,3298.5,3298.0,6.91977478]
[1642256333081,0.00284212,3298.5,3298.1,2.65772071]
[1642256333281,0.00227369,3298.4,3298.2,2.67356007]
[1642256333583,0.00170527,3298.3,3298.2,2.67356007]
[1642256334252,0.00170527,3298.3,3298.1,0.8889]
[1642256334536,0.00113685,3298.2,3298.1,3.48830969]
[1642256335339,0.00113685,3298.2,3298.1,4.24628969]
[1642256335637,0.00113685,3298.2,3298.1,15.30423419]
[1642256338088,0.00113685,3298.2,3298.1,12.7048245]
[1642256338288,2.67954584,3298.7,3298.3,11.58606345]
[1642256338483,2.67954584,3298.7,3298.4,7.5792011]
[1642256338682,0.00170527,3298.5,3298.4,7.5792011]
[1642256338882,0.00170527,3298.5,3298.4,11.67452826]
[1642256339083,0.00170527,3298.5,3298.4,10.91667826]
[1642256339291,0.00170527,3298.5,3298.4,7.23251299]
[1642256339484,0.00170527,3298.5,3298.4,11.08251299]
[1642256339684,0.00170527,3298.5,3298.4,12.58998708]
[1642256341389,0.00170527,3298.5,3298.4,8.73998708]
[1642256342455,0.00170527,3298.5,3298.4,7.23251299]
[1642256343256,0.75819,3298.6,3298.5,6.57895173]
[1642256345483,4.75819,3298.6,3298.5,6.57895173]
[1642256347986,5.58082247,3298.6,3298.5,6.57895173]
[1642256348386,4.75819,3298.6,3298.5,6.57895173]
[1642256348586,7.35696736,3298.6,3298.5,6.57895173]
[1642256349234,17.35,3298.5,3298.4,6.0635]
[1642256349637,18.28391937,3298.5,3298.4,6.0635]
[1642256350938,0.93391937,3298.5,3298.4,6.0635]
[1642256352836,2.67954584,3298.7,3298.5,0.05459268]
[1642256353087,2.67954584,3298.7,3298.4,6.0635]
[1642256353786,2.67954584,3298.7,3298.5,0.9027889]
[1642256354692,2.67954584,3298.7,3298.6,8.83066516]
[1642256354987,2.63068268,3298.7,3298.6,8.83066516]
[1642256355187,2.63068268,3298.7,3298.6,1.48066516]
[1642256355385,2.63068268,3298.7,3298.6,4.78066516]
[1642256355584,2.63068268,3298.7,3298.6,1.48066516]
[1642256355786,2.63068268,3298.7,3298.6,4.07324229]
[1642256356930,2.63068268,3298.7,3298.6,1.48066516]
[1642256357333,2.63068268,3298.7,3298.6,7.38066516]
[1642256357733,2.63068268,3298.7,3298.6,1.48066516]
[1642256358132,2.63068268,3298.7,3298.6,4.07322978]
[1642256359235,2.63068268,3298.7,3298.6,8.77322978]
[1642256359434,2.63068268,3298.7,3298.6,4.07322978]
[1642256361211,2.63068268,3298.7,3298.6,1.48066516]
[1642256362213,2.63068268,3298.7,3298.6,8.48066516]
[1642256362618,2.63068268,3298.7,3298.6,1.48066516]
[1642256363016,2.63068268,3298.7,3298.6,4.07317379]
[1642256364237,2.63068268,3298.7,3298.6,8.18066516]
[1642256364437,0.00113684,3298.7,3298.6,8.18066516]
[1642256365245,0.00113684,3298.7,3298.6,10.7732222]
[1642256369782,0.043644,3299.2,3298.7,12.12952016]
[1642256369982,0.043644,3299.2,3298.7,12.17498316]
[1642256370183,0.0022737,3299.1,3298.7,12.17498316]
[1642256370388,0.0022737,3299.1,3299.0,5.0]
[1642256370585,0.043644,3299.8,3299.0,6.07714435]
[1642256370785,0.043644,3299.8,3299.7,1.10265688]
[1642256370986,0.043644,3299.8,3299.7,1.98663442]
[1642256371186,5.593644,3299.8,3299.7,1.98663442]
[1642256371591,0.043644,3299.8,3299.7,1.98663442]
[1642256371840,0.01292488,3300.4,3299.7,1.98663442]
[1642256372235,0.043644,3300.5,3299.7,1.98663442]
[1642256372236,4.02674981,3300.0,3299.8,6.6]
[1642256372738,3.844193,3300.0,3299.8,6.6]
[1642256373137,3.844193,3300.0,3299.7,1.98663442]
[1642256373336,3.74567027,3300.0,3299.7,1.98663442]
[1642256373538,3.74567027,3300.0,3299.9,4.15]
[1642256374337,6.64567027,3300.0,3299.9,4.15]
[1642256374538,6.64567027,3300.0,3299.9,8.75]
[1642256374539,6.39429243,3300.0,3299.9,8.75]
[1642256374737,6.39429243,3300.0,3299.9,4.195463]
[1642256374936,6.39429243,3300.0,3299.9,4.15]
[1642256375796,6.39429243,3300.0,3299.8,0.045463]
[1642256376193,0.043644,3300.5,3300.0,0.33342423]
[1642256376394,0.043644,3300.5,3300.0,0.37888723]
[1642256376596,0.00284211,3300.4,3300.1,0.05548617]
[1642256376794,0.00284211,3300.4,3300.0,0.37888723]
[1642256376994,0.00227369,3300.3,3300.1,1.22241333]
[1642256377194,0.00227369,3300.3,3300.2,1.13925929]
[1642256377396,0.043644,3300.5,3300.2,1.13925929]
[1642256377793,0.00284211,3300.4,3300.2,1.13925929]
[1642256377994,0.75779,3300.3,3300.0,0.37888723]
[1642256378198,3.35940652,3300.3,3300.0,0.33342423]
[1642256378395,0.00170527,3300.2,3300.0,0.33342423]
[1642256378798,3.90113684,3300.1,3300.0,0.33342423]
[1642256378996,4.91915127,3300.1,3300.0,0.33342423]
[1642256380033,1.01915127,3300.1,3300.0,0.33342423]
[1642256380235,0.00113684,3300.1,3300.0,0.33342423]
[1642256381234,1.10897232,3300.1,3300.0,0.33342423]
[1642256381434,0.00113684,3300.1,3300.0,0.33342423]
[1642256382637,0.89719805,3300.1,3300.0,0.33342423]
[1642256382839,5.31119562,3300.1,3300.0,0.33342423]
[1642256383088,14.71119562,3300.1,3300.0,0.33342423]
[1642256383893,18.46119562,3300.1,3300.0,0.33342423]
[1642256384588,14.71119562,3300.1,3300.0,0.33342423]
[1642256385188,14.71119562,3300.1,3300.0,6.91408123]
[1642256386742,11.81295805,3300.1,3300.0,6.91408123]
[1642256387534,1.65504805,3300.1,3300.0,6.91408123]
[1642256387934,6.05504805,3300.1,3300.0,6.91408123]
[1642256392188,0.75898684,3300.1,3300.0,13.49473823]
[1642256392787,4.55898684,3300.1,3300.0,13.49473823]
[1642256393887,5.44621794,3300.1,3300.0,13.49473823]
[1642256394096,0.75898684,3300.1,3300.0,13.49473823]
[1642256394336,0.00113684,3300.1,3300.0,13.54020123]
[1642256395037,0.00113684,3300.1,3300.0,14.56679228]
[1642256396743,0.70886114,3300.8,3300.0,14.56679228]
[1642256397139,0.00341054,3300.7,3300.0,14.56679228]
[1642256397539,0.00284212,3300.6,3300.2,0.045463]
[1642256397983,0.0022737,3300.5,3300.2,0.045463]
[1642256398383,0.00170527,3300.4,3300.2,0.045463]
[1642256398587,0.00170527,3300.4,3300.0,14.56679228]
[1642256398784,0.00113685,3300.3,3300.0,14.56679228]
[1642256399686,0.00113685,3300.3,3300.2,9.145463]
[1642256400285,0.00113685,3300.3,3300.2,0.045463]
[1642256400885,0.00113685,3300.3,3300.2,4.295463]
[1642256402739,0.00113685,3300.3,3300.2,8.095463]
[1642256403540,0.00113685,3300.3,3300.2,10.68699074]
[1642256405142,0.00113685,3300.3,3300.2,6.88699074]
[1642256405584,0.00113685,3300.3,3300.2,6.83699074]
[1642256406085,0.00113685,3300.3,3300.2,4.245463]
[1642256406685,0.00113685,3300.3,3300.2,15.605663]
[1642256406886,0.00113685,3300.3,3300.2,18.78761994]
[1642256407091,1.51442437,3301.1,3300.3,11.1]
[1642256407092,1.4188579,3301.1,3300.3,11.1]
[1642256407287,0.84819585,3301.1,3300.5,1.51471]
[1642256407487,0.00397896,3301.0,3300.5,1.51471]
[1642256407686,0.00397896,3301.0,3300.6,6.0595]
[1642256407887,0.00341054,3300.9,3300.6,6.0595]
[1642256408286,0.00284212,3300.8,3300.6,6.0595]
[1642256408488,0.00284212,3300.8,3300.7,11.96718979]
[1642256408787,0.801044,3301.9,3301.8,1.17163312]
[1642256408988,0.34535717,3301.7,3300.9,0.06762961]
[1642256409249,0.34535717,3301.7,3301.0,1.40204822]
[1642256410243,1.10280717,3301.7,3301.0,1.40204822]
[1642256410444,0.7575276,3301.6,3301.0,1.40204822]
[1642256410842,0.00682108,3301.5,3301.0,1.40204822]
[1642256411244,0.00625266,3301.4,3301.0,1.40204822]
[1642256411644,0.34535717,3301.7,3301.0,1.40204822]
[1642256411645,0.00568423,3301.3,3301.0,1.40204822]
[1642256412148,0.00511581,3301.2,3301.0,1.36890922]
[1642256412545,0.00454739,3301.1,3301.0,1.36890922]
[1642256416590,0.00454739,3301.1,3301.0,8.96890922]
[1642256417836,0.00454739,3301.1,3301.0,11.5598978]
[1642256420487,0.00454739,3301.1,3301.0,15.0598978]
[1642256421090,1.51657618,3302.6,3301.6,1.5141135]
[1642256421290,1.51657618,3302.6,3301.8,0.09795791]
[1642256421488,0.00795793,3302.5,3301.6,2.2712635]
[1642256421889,1.42396568,3302.6,3301.7,1.0296508]
[1642256422088,1.42396568,3302.6,3301.7,1.03362976]
[1642256422388,0.045463,3303.0,3301.7,1.03362976]
[1642256422591,0.045463,3303.0,3301.8,4.3652]
[1642256422789,0.00284212,3302.9,3301.8,4.3652]
[1642256422990,0.00284212,3302.9,3301.9,0.00284211]
[1642256423189,0.0022737,3302.8,3301.9,0.00284211]
[1642256423591,0.045463,3303.0,3301.9,0.00284211]
[1642256423592,0.00170527,3302.7,3301.9,0.00284211]
[1642256423791,0.00170527,3302.7,3302.0,0.05228151]
[1642256423993,0.00113685,3302.6,3302.0,0.05228151]
[1642256424241,0.00113685,3302.6,3302.2,0.08637513]
[1642256424637,0.00113685,3302.6,3302.1,0.00170527]
[1642256425036,0.00113685,3302.6,3302.0,0.00227369]
[1642256427540,2.27375018,3302.7,3302.0,0.00227369]
[1642256427541,2.07488703,3302.7,3302.3,1.38701316]
[1642256427743,2.07488703,3302.7,3302.2,1.15091972]
[1642256427985,2.07488703,3302.7,3302.4,0.00113685]
[1642256428186,2.07488703,3302.7,3302.3,0.00170527]
[1642256428786,2.07488703,3302.7,3302.1,0.00284212]
[1642256429086,2.07488703,3302.7,3302.2,1.17298317]
[1642256429087,2.83214263,3302.7,3302.2,1.17298317]
[1642256429288,0.75726,3302.5,3302.3,1.01417414]
[1642256429490,0.75726,3302.5,3302.3,1.01587941]
[1642256429686,0.75726,3302.5,3302.4,0.00113685]
[1642256430489,5.80726,3302.5,3302.4,0.00113685]
[1642256431287,5.80726,3302.5,3302.4,6.58179385]
[1642256431288,0.75726,3302.5,3302.4,6.58179385]
[1642256432538,17.39011793,3302.5,3302.4,6.58179385]
[1642256433438,14.60726,3302.5,3302.4,6.58179385]
[1642256433837,14.40726,3302.5,3302.4,6.58179385]
[1642256434439,14.40726,3302.5,3302.4,5.06503365]
[1642256435240,14.40726,3302.5,3302.4,3.54827345]
[1642256435490,0.55726,3302.5,3302.4,3.54827345]
[1642256436089,5.00726,3302.5,3302.4,2.03151325]
[1642256436892,10.55726,3302.5,3302.4,0.51479906]
[1642256437691,5.65186912,3302.4,3302.3,1.01417414]
[1642256437996,1.00186912,3302.4,3302.3,1.01417414]
[1642256438392,3.7,3302.4,3302.3,1.01417414]
[1642256439437,8.55,3302.4,3302.3,1.01417414]
[1642256441440,11.07169269,3302.4,3302.3,1.01417414]
[1642256441640,3.6,3302.4,3302.3,1.01417414]
[1642256442641,2.83117688,3302.5,3302.3,1.01417414]
[1642256442842,2.07388218,3302.5,3302.3,1.01417414]
[1642256443904,2.83117558,3302.5,3302.3,1.01417414]
[1642256444299,4.25,3302.4,3302.3,1.01417414]
[1642256446400,0.8027147,3302.7,3302.4,0.07807866]
[1642256446600,0.7572517,3302.7,3302.3,1.01417414]
[1642256446846,0.00113685,3302.6,3302.3,1.01417414]
[1642256448039,0.75726,3302.5,3302.3,1.01417414]
[1642256454445,0.00113685,3302.6,3302.3,1.01417414]
[1642256456246,0.00113685,3302.6,3302.5,1.42899102]
[1642256458090,0.00113685,3302.6,3302.3,1.01417414]
[1642256458291,0.75837685,3302.6,3302.3,1.01417414]
[1642256459290,0.75837685,3302.6,3302.5,1.28597198]
[1642256460191,0.00113685,3302.6,3302.5,1.28597198]
[1642256461189,4.35113685,3302.6,3302.5,1.28597198]
[1642256463041,7.12804508,3302.6,3302.3,1.01417414]
[1642256463841,8.64265508,3302.6,3302.3,1.01417414]
[1642256464042,1.5146429,3302.5,3302.3,1.01417414]
[1642256464245,8.5073,3302.4,3302.3,1.01417414]
[1642256464441,0.04659985,3302.6,3302.3,1.01417414]
[1642256464641,0.00113685,3302.6,3302.3,1.01417414]
[1642256464841,1.51771303,3302.6,3302.3,1.01417414]
[1642256465341,1.51771303,3302.6,3302.4,1.10636361]
[1642256465592,0.00113685,3302.6,3302.4,1.10636361]
[1642256469246,0.00113685,3302.6,3302.3,1.01417414]
[1642256470849,0.045463,3302.4,3302.3,1.01417414]
[1642256471649,0.045463,3302.5,3302.3,1.01417414]
[1642256472350,0.00113685,3302.6,3302.3,1.01417414]
[1642256473191,0.00113685,3302.6,3302.4,0.06502326]
[1642256473691,0.00113685,3302.6,3302.3,1.01417414]
[1642256474893,0.04659985,3302.6,3302.3,1.01417414]
[1642256475191,0.00113685,3302.6,3302.3,1.01417414]
[1642256476413,0.045463,3303.1,3302.6,6.57952015]
[1642256476740,2.27343713,3303.2,3302.7,0.0788836]
[1642256476741,0.04773669,3303.0,3302.7,0.0788836]
[1642256476942,0.00227369,3303.0,3302.8,0.87683481]
[1642256477147,1.51630023,3303.2,3302.9,2.75950015]
[1642256477341,8.36418,3303.8,3302.8,1.78193481]
[1642256477542,0.00284212,3303.1,3302.8,1.78193481]
[1642256477742,0.00284212,3303.1,3302.9,0.05298121]
[1642256477941,0.00227369,3303.0,3302.9,5.45]
[1642256478342,0.00227369,3303.0,3302.9,8.13208308]
[1642256478642,0.00227369,3303.0,3302.9,5.45]
[1642256480041,0.00227369,3303.0,3302.8,0.87683481]
[1642256480496,0.00170527,3302.9,3302.8,0.87683481]
[1642256480792,0.045463,3303.2,3302.8,0.87683481]
[1642256480992,0.00170527,3302.9,3302.8,0.87683481]
[1642256481193,0.045463,3302.9,3302.8,0.87683481]
[1642256481393,0.04716827,3302.9,3302.8,0.87683481]
[1642256481594,0.00170527,3302.9,3302.8,0.87683481]
[1642256481793,0.00170527,3302.9,3302.8,4.12683481]
[1642256482594,0.00170527,3302.9,3302.8,10.70749181]
[1642256483295,0.04716827,3302.9,3302.8,10.70749181]
[1642256483896,0.00170527,3302.9,3302.8,10.70749181]
[1642256485539,0.00170527,3302.9,3302.8,7.45749181]
[1642256485742,0.04716827,3302.9,3302.8,7.45749181]
[1642256486140,0.00170527,3302.9,3302.8,7.45749181]
[1642256486541,0.04716827,3302.9,3302.8,7.45749181]
[1642256486743,0.00170527,3302.9,3302.8,7.45749181]
[1642256487346,0.045463,3303.0,3302.9,6.57895173]
[1642256487648,0.045463,3303.4,3303.0,0.07719284]
[1642256487852,0.045463,3303.2,3303.0,0.07719284]
[1642256488101,0.04830512,3303.4,3303.0,0.07719284]
[1642256488301,0.045463,3303.3,3302.9,6.57895173]
[1642256488500,0.04773669,3303.3,3302.9,6.57895173]
[1642256488698,0.00170527,3303.2,3302.9,6.57895173]
[1642256489097,0.00113685,3303.1,3302.9,6.57895173]
[1642256489299,0.00113685,3303.1,3302.9,9.17116371]
[1642256489498,0.00227369,3303.3,3303.1,0.09589569]
[1642256489698,0.00227369,3303.3,3303.0,5.2]
[1642256489901,0.00170527,3303.2,3303.0,7.80599812]
[1642256490299,0.00113685,3303.1,3303.0,5.2]
[1642256490500,0.00113685,3303.1,3302.9,6.57895173]
[1642256490699,0.00454739,3303.1,3302.9,6.57895173]
[1642256491097,0.00454739,3303.1,3302.9,9.16506424]
[1642256491300,0.00454739,3303.1,3303.0,6.31211477]
[1642256492142,0.00454739,3303.1,3303.0,3.7]
[1642256492340,0.00454739,3303.1,3303.0,6.29356185]
[1642256493141,0.00454739,3303.1,3303.0,3.7]
[1642256493741,0.00454739,3303.1,3303.0,7.7]
[1642256494540,0.00454739,3303.1,3303.0,3.7]
[1642256496695,0.00454739,3303.1,3303.0,8.45]
[1642256496896,0.00454739,3303.1,3303.0,11.0540745]
[1642256497094,0.00454739,3303.1,3303.0,8.45]
[1642256497496,0.00454739,3303.1,3303.0,11.0649289]
[1642256497895,0.00454739,3303.1,3303.0,8.45]
[1642256500351,0.00454739,3303.1,3303.0,3.7]
[1642256501048,0.00454739,3303.1,3302.9,6.57895173]
[1642256501249,0.00454739,3303.1,3303.0,6.0551]
[1642256503697,0.00454739,3303.1,3303.0,9.3051]
[1642256504099,0.00454739,3303.1,3303.0,6.0551]
[1642256505702,0.00454739,3303.1,3303.0,13.28810203]
[1642256506099,0.00454739,3303.1,3303.0,10.6551]
[1642256506749,0.00454739,3303.1,3303.0,6.0551]
[1642256513799,0.045463,3303.2,3303.1,6.57610961]
[1642256514003,0.045463,3303.3,3303.1,6.57610961]
[1642256514254,0.045463,3303.4,3303.1,6.57610961]
[1642256514444,0.045463,3303.5,3303.2,0.08007532]
[1642256514849,0.045463,3303.5,3303.3,0.0022737]
[1642256515047,0.752493,3303.6,3303.4,0.0762436]
[1642256515247,0.752493,3303.6,3303.3,1.12269525]
[1642256515448,5.302493,3303.6,3303.5,0.00113685]
[1642256515647,5.302493,3303.6,3303.4,0.00170527]
[1642256515846,5.302493,3303.6,3303.2,0.00284212]
[1642256516047,0.75717,3303.4,3303.2,0.00284212]
[1642256516254,8.47960357,3303.3,3303.2,0.00284212]
[1642256516446,5.95,3303.3,3303.2,0.00284212]
[1642256517047,8.46516577,3303.3,3303.2,0.00284212]
[1642256517847,5.95,3303.3,3303.2,0.00284212]
[1642256519595,5.95,3303.3,3303.1,0.00341054]
[1642256520400,6.7071463,3303.3,3303.1,0.00341054]
[1642256521602,5.95,3303.3,3303.1,0.00341054]
[1642256522860,6.7071178,3303.3,3303.1,0.00341054]
[1642256523660,5.95,3303.3,3303.1,0.00341054]
[1642256524661,9.54767308,3303.2,3303.1,0.00341054]
[1642256526099,9.54767308,3303.2,3303.1,1.27550587]
[1642256526300,9.54767308,3303.2,3303.1,0.00341054]
[1642256527298,13.09767308,3303.2,3303.1,0.00341054]
[1642256527498,11.3071869,3303.2,3303.1,0.00341054]
[1642256530043,10.55,3303.2,3303.1,0.00341054]
[1642256531446,17.3,3303.2,3303.1,0.00341054]
[1642256533092,18.0571797,3303.2,3303.1,0.00341054]
[1642256534093,7.7571797,3303.2,3303.1,1.28580159]
[1642256534793,7.7571797,3303.2,3303.1,0.00341054]
[1642256535293,12.4571797,3303.2,3303.1,0.00341054]
[1642256536193,16.6571797,3303.2,3303.1,0.00341054]
[1642256537846,12.4571797,3303.2,3303.1,0.00341054]
[1642256539247,16.5071797,3303.2,3303.1,0.00341054]
[1642256540150,12.4571797,3303.2,3303.1,0.00341054]
[1642256541197,18.0571797,3303.2,3303.1,0.00341054]
[1642256549620,12.4571797,3303.2,3303.0,6.0551]
[1642256549921,11.50726,3303.1,3303.0,6.0551]
[1642256550321,11.50726,3303.1,3303.0,6.05907897]
[1642256552746,0.75726,3303.1,3303.0,6.05907897]
[1642256553150,2.57787906,3303.5,3303.1,0.0715286]
[1642256553151,0.7571,3303.4,3303.1,0.0715286]
[1642256553346,0.7571,3303.4,3303.0,6.05907897]
[1642256553545,0.7571,3303.4,3303.2,0.00284212]
[1642256553745,0.7571,3303.4,3303.1,0.00341054]
[1642256554345,0.7571475,3303.3,3303.1,0.00341054]
[1642256556898,0.75705,3303.6,3303.2,0.05523135]
[1642256557102,0.75705,3303.6,3303.1,2.54767407]
[1642256557298,1.51607035,3303.7,3303.3,0.0022737]
[1642256557497,1.51607035,3303.7,3303.2,0.00284212]
[1642256557700,1.51607035,3303.7,3303.1,0.00341054]
[1642256558099,1.51607035,3303.7,3303.6,1.34878547]
[1642256559548,4.1,3303.6,3303.0,5.40729601]
[1642256560750,4.1,3303.6,3303.1,3.81689489]
[1642256560950,1.51948089,3303.7,3303.1,3.81689489]
[1642256561156,1.51948089,3303.7,3303.6,1.19251512]
[1642256561352,1.51607035,3303.7,3303.6,1.19251512]
[1642256568350,2.65363314,3304.5,3303.6,1.19251512]
[1642256568351,0.7568573,3304.5,3303.6,1.19251512]
[1642256568551,4.95207994,3304.6,3303.7,0.07125774]
[1642256568552,3.1619,3304.6,3303.7,0.07125774]
[1642256568751,0.00625265,3304.2,3303.8,0.045463]
[1642256569150,1.52157072,3304.1,3303.9,1.06528909]
[1642256569452,0.00511581,3304.0,3303.9,1.06528909]
[1642256572298,0.00511581,3304.0,3303.9,7.64594609]
[1642256574750,0.00511581,3304.0,3303.9,11.19594609]
[1642256575152,0.00511581,3304.0,3303.9,10.234867]
[1642256575451,0.75679,3304.7,3304.5,1.22761311]
[1642256575851,4.65341054,3304.6,3304.5,1.22761311]
[1642256578302,7.39342637,3304.6,3304.2,0.045463]
[1642256578500,1.5138982,3304.5,3304.0,6.57554119]
[1642256578698,3.51615721,3304.4,3304.0,6.57554119]
[1642256578996,2.51816692,3304.3,3304.0,6.57554119]
[1642256579200,0.00170527,3304.3,3304.0,6.57554119]
[1642256579396,0.00113684,3304.2,3304.0,7.88562392]
[1642256579797,0.00227369,3304.4,3304.0,7.88562392]
[1642256579998,0.75692,3304.2,3304.0,6.57554119]
[1642256580297,7.20452022,3304.1,3304.0,6.57554119]
[1642256582948,4.7,3304.1,3304.0,6.57554119]
[1642256585598,4.7,3304.1,3304.0,7.54341579]
[1642256586700,1.51584053,3304.2,3304.0,7.54341579]
[1642256587499,2.27274053,3304.2,3304.0,7.54341579]
[1642256588502,1.51584053,3304.2,3304.0,7.54341579]
[1642256590345,1.51584053,3304.2,3304.1,5.12475506]
[1642256590746,0.00113684,3304.2,3304.1,5.12475506]
[1642256593599,0.00113684,3304.2,3304.1,8.47475506]
[1642256594200,0.00033414,3304.2,3304.1,5.12475506]
[1642256594399,0.00033414,3304.2,3304.1,4.0]
[1642256595601,0.00033414,3304.2,3304.1,8.85]
[1642256596857,0.045462,3304.9,3304.2,6.58032286]
[1642256597054,0.045462,3304.9,3304.2,6.62578586]
[1642256597251,0.00341055,3304.8,3304.2,6.62578586]
[1642256597652,0.00284212,3304.7,3304.2,6.62578586]
[1642256598152,0.0022737,3304.6,3304.3,2.58868984]
[1642256598553,0.00170528,3304.5,3304.3,2.58868984]
[1642256598953,0.00113685,3304.4,3304.3,2.58868984]
[1642256599551,0.00113685,3304.4,3304.3,7.53868984]
[1642256601100,0.00113685,3304.4,3304.3,2.58868984]
[1642256601701,0.00113685,3304.4,3304.2,6.62578586]
[1642256607447,0.00113685,3304.4,3304.2,6.58032286]
[1642256607852,0.00113685,3304.4,3304.3,2.58877096]
[1642256608099,1.51565673,3304.6,3304.4,6.57952015]
[1642256615905,2.27247673,3304.6,3304.4,6.57952015]
[1642256617204,0.75682,3304.6,3304.4,6.57952015]
[1642256617409,18.80362871,3304.5,3304.4,2.45852623]
[1642256617609,0.7571,3304.4,3304.2,0.52339286]
[1642256617807,16.9,3304.3,3304.0,6.5508762]
[1642256618007,18.41413,3304.3,3304.0,6.5508762]
[1642256618208,18.4905879,3304.3,3304.1,0.00170527]
[1642256619273,17.3,3304.2,3304.0,5.03651112]
[1642256619464,18.05707,3304.2,3304.0,5.03651112]
[1642256620065,18.05707,3304.2,3304.0,3.5203948]
[1642256620265,11.66728558,3304.1,3304.0,3.5203948]
[1642256621069,11.66728558,3304.1,3304.0,2.00432445]
[1642256622066,11.66728558,3304.1,3304.0,0.4882541]
[1642256622866,1.02773192,3303.8,3303.7,0.045463]
[1642256623101,1.02773192,3303.8,3303.5,0.045463]
[1642256623300,1.02773192,3303.8,3303.7,0.00227369]
[1642256623301,5.22773192,3303.8,3303.7,0.00227369]
[1642256623704,5.22773192,3303.8,3303.4,0.00397896]
[1642256623899,1.02773192,3303.8,3303.5,1.14715956]
[1642256624300,1.02773192,3303.8,3303.6,0.00284212]
[1642256624500,1.78473192,3303.8,3303.6,0.00284212]
[1642256624700,1.78473192,3303.8,3303.6,2.59196735]
[1642256627650,1.78473192,3303.8,3303.6,0.00284212]
[1642256628249,0.757,3303.8,3303.6,0.00284212]
[1642256629050,8.58502982,3303.7,3303.6,0.00284212]
[1642256629250,14.83502982,3303.7,3303.6,0.00284212]
[1642256629850,12.3,3303.7,3303.6,0.00284212]
[1642256630703,1.5132742,3303.6,3303.5,1.14715956]
[1642256633103,7.3632742,3303.6,3303.5,1.14715956]
[1642256633908,2.2703242,3303.6,3303.5,1.14715956]
[1642256635462,1.5132742,3303.6,3303.5,1.19262256]
[1642256636263,1.5132742,3303.6,3303.5,1.14715956]
[1642256636467,1.5132742,3303.6,3303.5,3.7362898]
[1642256639106,1.5132742,3303.6,3303.5,3.7817528]
[1642256639705,1.5132742,3303.6,3303.5,3.7362898]
[1642256641005,5.3632742,3303.6,3303.5,3.7362898]
[1642256641507,1.5132742,3303.6,3303.5,3.7362898]
[1642256641760,1.5132742,3303.6,3303.5,3.7817528]
[1642256641958,1.5132742,3303.6,3303.5,1.19262256]
[1642256642759,1.5132742,3303.6,3303.5,3.78168985]
[1642256645703,1.5132742,3303.6,3303.5,1.19262256]
[1642256646604,1.5132742,3303.6,3303.5,3.78176291]
[1642256649957,1.5132742,3303.6,3303.5,3.73629991]
[1642256654607,2.72928746,3303.6,3303.5,3.73629991]
[1642256655007,6.87928746,3303.6,3303.5,3.73629991]
[1642256655806,6.87928746,3303.6,3303.2,0.045463]
[1642256656007,6.87928746,3303.6,3302.7,6.9064]
[1642256656008,17.345463,3303.3,3303.0,0.090926]
[1642256656206,17.345463,3303.3,3303.1,1.15213716]
[1642256656207,0.7572764,3303.2,3303.1,1.15213716]
[1642256656405,3.81604172,3303.2,3303.0,0.090926]
[1642256656605,14.73676604,3303.1,3303.0,0.090926]
[1642256657155,14.73676604,3303.1,3303.0,0.09433654]
[1642256657552,14.73676604,3303.1,3303.0,0.04433654]
[1642256658954,13.6,3303.0,3302.1,3.9998]
[1642256659155,0.7573106,3302.5,3302.1,3.9998]
[1642256659354,3.34456784,3302.5,3302.2,0.00454738]
[1642256659553,0.7573106,3302.5,3302.2,0.00454738]
[1642256659757,0.7573106,3302.5,3302.1,0.00511581]
[1642256659955,0.7573106,3302.5,3302.2,2.58970637]
[1642256660156,1.25389296,3302.4,3302.3,0.85304039]
[1642256660354,2.01120296,3302.4,3302.3,0.85701935]
[1642256661605,1.25389296,3302.4,3302.3,3.44672572]
[1642256661802,1.25469296,3302.4,3302.3,3.44672572]
[1642256662002,1.25549296,3302.4,3302.3,3.44672572]
[1642256662806,1.25549296,3302.4,3302.3,8.39672572]
[1642256663706,1.25549296,3302.4,3302.3,3.44672572]
[1642256664857,1.25549296,3302.4,3302.3,7.59672572]
[1642256665658,0.0016,3302.4,3302.3,7.59672572]
[1642256665858,0.0016,3302.4,3302.3,15.19721219]
[1642256667263,0.0016,3302.4,3302.3,10.29721219]
[1642256669407,0.0016,3302.4,3302.3,7.59672572]
[1642256670704,0.0016,3302.4,3302.3,10.79672572]
[1642256671105,0.0016,3302.4,3302.3,7.59672572]
[1642256671506,0.0016,3302.4,3302.3,3.44672572]
[1642256672759,0.0016,3302.4,3302.3,7.19672572]
[1642256673657,0.0016,3302.4,3302.3,10.89672572]
[1642256675612,0.0016,3302.4,3302.3,7.19672572]
[1642256676409,0.0016,3302.4,3302.3,3.44672572]
[1642256680557,0.0016,3302.4,3302.3,6.64672572]
[1642256685506,0.0016,3302.4,3302.3,11.09672572]
[1642256687053,0.0016,3302.4,3302.3,6.64672572]
[1642256690256,0.0016,3302.4,3302.3,6.64274676]
[1642256691811,0.0016,3302.4,3302.3,3.44274676]
[1642256694558,0.0016,3302.4,3302.3,7.04274676]
[1642256697463,0.0016,3302.4,3302.3,3.43706862]
[1642256700507,0.0016,3302.4,3302.3,7.93706862]
[1642256702162,0.0016,3302.4,3302.3,10.5699841]
[1642256703864,0.0016,3302.4,3302.3,6.0699841]
[1642256705266,0.0016,3302.4,3302.3,6.98706862]
[1642256707113,0.0016,3302.4,3302.3,9.70082954]
[1642256707308,0.0016,3302.4,3302.3,17.90082954]